Cogmind - Beta 17.1 @@@ ROGUE MODE // 2026.09.21 @ 20:40:07 Player: deadbabe Result: Destroyed by Y-45 Defender with Beam Rifle Performance ------------- Evolutions (2) 1000 Regions Visited (6) 1200 Robots Destroyed (24) 120 Value Destroyed (657) 657 Prototype IDs (2) 40 Alien Tech Used (0) 0 Bonus (240) 240 TOTAL SCORE: 3257 Bonus ------- Follower Combat Kills 240 Cogmind --------- Core Integrity 0/550 Matter 213/300 Energy 118/265 System Corruption 2% Temperature Cool (32) Movement Walking (330) Ox3 Location -8/Storage Parts ------- > --- POWER (1) -------- Improved Ion Engine > --- PROPULSION (4) --- Improved Aluminum Leg > --- UTILITY (3) ------ High-capacity Storage Unit > --- WEAPON (3) ------- Light Assault Rifle Light Assault Rifle > --- INVENTORY (20) --- Ion Engine Light Ion Engine Light Nuclear Core Heat Sink Improved Heat Sink Improved Heat Sink Improved Terrain Scanner Advanced Targeting Computer Utility Shielding Drone Bay (2/2) Small Laser Particle Gun High-powered Shotgun Peak State ------------ > --- POWER ------------ Light Nuclear Core > --- PROPULSION ------- Aluminum Leg Aluminum Leg Aluminum Leg Carbon-fiber Leg > --- UTILITY ---------- High-capacity Storage Unit Seismic Detector Drone Bay > --- WEAPON ----------- Small Laser Heavy Particle Gun Beam Cannon > --- INVENTORY -------- Ion Engine Light Ion Engine Light Ion Engine Light Nuclear Core Light Treads Aluminum Leg Carbon-fiber Leg Heat Sink Improved Heat Sink Improved Heat Sink Improved Terrain Scanner Advanced Targeting Computer Utility Shielding Light Armor Plating Small Laser Particle Gun Assault Rifle Light Assault Rifle Light Assault Rifle High-powered Shotgun [Rating: 25] Favorites ----------- Power Light Nuclear Core Engine Ion Engine Power Core Light Nuclear Core Propulsion Light Treads Treads Light Treads Leg Aluminum Leg Utility Seismic Detector Device Seismic Detector Storage High-capacity Storage Unit Processor Targeting Computer Protection Light Armor Plating Weapon Assault Rifle Energy Gun Small Laser Energy Cannon Beam Cannon Ballistic Gun Assault Rifle Build | -11 -10 -10 -10 -9 -8 -8 ------- Run | Yrd Mat Min Exi Min Mat Sto Slots Evolved 4 | . . . . . 4 . Power . | . . . . . . . Propulsion 2 | . . . . . 2 . Utility 1 | . . . . . 1 . Weapon 1 | . . . . . 1 . Parts Attached 33 | 6 3 1 . . 1 22 Power 6 | . 1 1 . . . 4 Engine 3 | . 1 . . . . 2 Core 3 | . . 1 . . . 2 Reactor . | . . . . . . . Propulsion 10 | 2 . . . . . 8 Treads 3 | 2 . . . . . 1 Leg 7 | . . . . . . 7 Wheel . | . . . . . . . Hover . | . . . . . . . Flight . | . . . . . . . Utility 7 | 2 1 . . . 1 3 Device 4 | 2 . . . . . 2 Storage 1 | . 1 . . . . . Processor 1 | . . . . . 1 . Hackware . | . . . . . . . Protection 1 | . . . . . . 1 Artifact . | . . . . . . . Weapon 10 | 2 1 . . . . 7 Energy Gun 3 | . 1 . . . . 2 Energy Cannon 2 | . . . . . . 2 Ballistic Gun 5 | 2 . . . . . 3 Ballistic Cannon . | . . . . . . . Launcher . | . . . . . . . Special Weapon . | . . . . . . . Impact Weapon . | . . . . . . . Slashing Weapon . | . . . . . . . Piercing Weapon . | . . . . . . . Special Melee Weapon . | . . . . . . . Unidentified Prototypes 2 | . . . . . . 2 Parts Lost 19 | . . . . . . 19 Power 3 | . . . . . . 3 Propulsion 8 | . . . . . . 8 Utility 3 | . . . . . . 3 Weapon 5 | . . . . . . 5 Highest Loss Streak 14 | . . . . . . 14 To Critical Strikes 1 | . . . . . . 1 Average Backups 11 | 3 5 9 11 11 10 17 Power 2 | 1 1 2 3 3 3 3 Propulsion 1 | . . . 1 1 1 2 Utility 3 | . 1 3 3 3 2 5 Weapon 3 | . 2 3 4 4 4 5 Tool/Special . | . . . . . . . Unused Backups 10 | . 2 . . . . 8 Power 1 | . . . . . . 1 Propulsion . | . . . . . . . Utility 6 | . 2 . . . . 4 Weapon 3 | . . . . . . 3 Tool/Special . | . . . . . . . Average Slot Usage (%) 94 | . 94 100 100 100 70 89 Engine 2 | . 9 7 . . . . Core 9 | . . 6 14 14 9 8 Treads 21 | . 28 28 28 28 18 5 Leg 6 | . . . . . . 25 Device 14 | . 20 14 14 14 9 12 Storage 11 | . 7 14 14 14 9 9 Energy Gun 11 | . 9 14 14 14 9 9 Energy Cannon 1 | . . . . . . 3 Ballistic Gun 14 | . 18 14 14 14 9 13 Peak Build Rating 25 | 8 9 10 10 10 11 25 Average Rating 11 | 4 7 8 10 10 10 17 On Entrance 8 | . 8 8 10 10 10 11 Avg Prop Armor Cover (%) 6 | . . . . . . 6 Naked Turns . | . . . . . . . Heaviest Build 59 | 5 49 49 49 49 49 59 Greatest Support 45 | 40 40 40 40 40 40 45 Greatest Overweight (x) 5 | . 1 1 1 1 1 5 Average Overweight (x) . | . . 1 1 1 1 1 Largest Inventory Capacity 20 | 5 20 20 20 20 20 20 Average Capacity 18 | 5 13 20 20 20 20 20 Most Carried 20 | 5 8 11 11 11 12 20 Average Carried 11 | 3 5 9 11 11 10 17 Final Capacity 20 | 5 20 20 20 20 20 20 Final Carried 13 | 4 8 11 11 11 12 13 Class Distribution -------------------- 75% | Mutant 20% | Scavenger-Gunner 3% | Gunner Dominant Class ---------------- Mutant | -10/Materials Mutant | -10/Mines Mutant | -10/Exiles Mutant | -9/Mines Mutant | -8/Materials Scavenger-Gunner | -8/Storage Resources | -11 -10 -10 -10 -9 -8 -8 ----------- Run | Yrd Mat Min Exi Min Mat Sto Matter Collected 693 | 230 79 47 . . . 337 Remotely . | . . . . . . . Salvage Created 997 | 99 183 . . . . 715 Parts 48 | 6 10 . . . . 32 Haulers Intercepted 1 | . . . . . . 1 Recyclers Shooed . | . . . . . . . Parts Field Recycled . | . . . . . . . Retrieved Matter . | . . . . . . . Parts Self-Destructed . | . . . . . . . Prevented . | . . . . . . . Parts Restored . | . . . . . . . Kills | -11 -10 -10 -10 -9 -8 -8 ------- Run | Yrd Mat Min Exi Min Mat Sto Combat Hostiles Destroyed 16 | . 5 . . . . 11 Guns 15 | . 5 . . . . 10 Cannons 1 | . . . . . . 1 Classes Destroyed 9 | 2 2 . . . . 5 Builder 2 | . . . . . . 2 Tunneler 2 | 2 . . . . . . Hauler 1 | . . . . . . 1 Recycler 3 | 1 1 . . . . 1 Swarmer 4 | . 4 . . . . . Grunt 7 | . 1 . . . . 6 Duelist 1 | . . . . . . 1 Sentry 2 | . . . . . . 2 Hunter 2 | . . . . . . 2 Best Kill Streak 5 | 3 3 . . . . 5 Combat Bots Only 4 | . 3 . . . . 4 Max Kills in Single Turn 1 | 1 1 . . . . 1 Gunslinging . | . . . . . . . Exploded . | . . . . . . . Melee . | . . . . . . . Uniques/NPCs Destroyed . | . . . . . . . Combat | -11 -10 -10 -10 -9 -8 -8 -------- Run | Yrd Mat Min Exi Min Mat Sto Hostile Shots Fired 219 | . 30 20 . . . 169 Missed 50 | . 9 7 . . . 34 Hits 169 | . 21 13 . . . 135 Melee 6 | . . . . . . 6 Projectile 163 | . 21 13 . . . 129 Critical Strikes 9 | . 1 . . . . 8 Damage Taken 2599 | . 187 174 . . . 2238 Core 646 | . 71 24 . . . 551 Absorbed by Shields . | . . . . . . . Core Remaining (%) 81 | 100 . . . 62 . . Volleys Fired 80 | 10 17 4 . . . 49 Largest 3 | 2 2 2 . . . 3 Hottest 155 | 40 60 60 . . . 155 Shots Fired 177 | 20 28 8 . . . 121 Gun 169 | 20 28 8 . . . 113 Cannon 8 | . . . . . . 8 Launcher . | . . . . . . . Special . | . . . . . . . Kinetic 121 | 20 27 4 . . . 70 Thermal 56 | . 1 4 . . . 51 Explosive . | . . . . . . . Electromagnetic . | . . . . . . . Robot Hit Streak 9 | 4 3 2 . . . 9 Robot Miss Streak 4 | 4 4 2 . . . 3 Penetration Max . | . . . . . . . Secondary Targets 4 | . 1 . . . . 3 Max Gunslinging Chain 1 | . 1 . . . . 1 Shots Hit Robots 105 | 8 13 4 . . . 80 Core Hits 54 | 5 8 2 . . . 39 Critical Kills . | . . . . . . . Critical Parts Destroyed . | . . . . . . . Critical Strikes . | . . . . . . . Melee Attacks . | . . . . . . . Impact . | . . . . . . . Slashing . | . . . . . . . Piercing . | . . . . . . . Sneak Attacks . | . . . . . . . Combat Hostiles . | . . . . . . . Follow-up Attacks . | . . . . . . . Damage Inflicted 1303 | 84 149 59 . . . 1011 Guns 1225 | 84 149 59 . . . 933 Cannons 71 | . . . . . . 71 Explosions . | . . . . . . . Melee . | . . . . . . . Ramming 7 | . . . . . . 7 Kinetic 799 | 84 149 37 . . . 529 Thermal 497 | . . 22 . . . 475 Explosive . | . . . . . . . Electromagnetic . | . . . . . . . Impact . | . . . . . . . Slashing . | . . . . . . . Piercing . | . . . . . . . Highest Corruption 2 | . . . . . . 2 Average Corruption 2 | . . . . . . 2 Corruption Purged . | . . . . . . . Corruption Blocked . | . . . . . . . Overload Shots . | . . . . . . . Overflow Damage . | . . . . . . . Projectiles . | . . . . . . . Explosions . | . . . . . . . Melee . | . . . . . . . Knockbacks . | . . . . . . . Impact . | . . . . . . . Kinetic . | . . . . . . . Secondary . | . . . . . . . Self-Inflicted Damage . | . . . . . . . Shots . | . . . . . . . Rammed . | . . . . . . . Targets Rammed 1 | . . . . . . 1 Kicked 1 | . . . . . . 1 Crushed . | . . . . . . . Highest Temperature 406 | . 1 30 . . . 406 Average Temperature 69 | . 1 14 . . . 75 Received Heat Transfer 936 | . 30 96 . . . 810 Effects 2 | . . . . . . 2 Energy Bleed 1 | . . . . . . 1 Short Circuit 1 | . . . . . . 1 Siege Activations . | . . . . . . . Martial Activations . | . . . . . . . Shielding Activations . | . . . . . . . Robots Disrupted . | . . . . . . . Combat Hostiles . | . . . . . . . Robots Corrupted . | . . . . . . . Combat Hostiles . | . . . . . . . Parts Fried . | . . . . . . . Impact Corruptions . | . . . . . . . Robots Melted . | . . . . . . . Combat Hostiles . | . . . . . . . Parts Melted 1 | . . . . . . 1 Heat Transferred 1094 | . . 50 . . . 1044 Parts Sabotaged . | . . . . . . . Parts Stolen . | . . . . . . . Parts Stripped . | . . . . . . . Power Chain Reactions . | . . . . . . . Alert | -11 -10 -10 -10 -9 -8 -8 ------- Run | Yrd Mat Min Exi Min Mat Sto Maximum Alert Level . | . . . . . . . Low Security (%) 100 | 100 100 100 . 100 100 100 Level 1 . | . . . . . . . Level 2 . | . . . . . . . Level 3 . | . . . . . . . Level 4 . | . . . . . . . Level 5 . | . . . . . . . High Security . | . . . . . . . Max Security . | . . . . . . . Peak Influence 85 | 5 85 85 . 65 17 66 Initial 17 | . . . . . 17 . Average 17 | . 23 31 . 10 3 18 Influence Increases 744 | 15 155 95 . 65 . 414 Destroy 0b10 Robot/C 480 | . 100 80 . 40 . 260 Destroy 0b10 Robot/NC 40 | 15 5 . . . . 20 Destroy Leader 102 | . 20 10 . 10 . 62 Allied During Kill 30 | . . 5 . 15 . 10 Disable Machine 15 | . . . . . . 15 Destroy Structure 2 | . . . . . . 2 Lose Combat Pursuer 75 | . 30 . . . . 45 Influence Decreases 744 | 15 155 80 15 20 45 414 Entered New Map 43 | . . . 15 . 28 . Time Decay 504 | 15 155 80 . 20 17 217 Lost Part 150 | . . . . . . 150 Lost Ally 47 | . . . . . . 47 Squads Dispatched 7 | . 3 1 . . . 3 Investigation . | . . . . . . . Extermination . | . . . . . . . Reinforcement 6 | . 3 . . . . 3 Assault 1 | . . 1 . . . . Garrison . | . . . . . . . Intercept . | . . . . . . . Searches Triggered . | . . . . . . . Construction Impeded . | . . . . . . . Haulers Reinforced . | . . . . . . . Active Scanning Responses . | . . . . . . . Cargo Convoy Interrupts . | . . . . . . . Stealth | -11 -10 -10 -10 -9 -8 -8 --------- Run | Yrd Mat Min Exi Min Mat Sto Distress Signals 1 | . . . . . . 1 Communications Jammed . | . . . . . . . Distress Signals . | . . . . . . . Times Spotted 43 | . 10 5 . . . 28 Peak Tracking Total 8 | . 4 4 . . . 8 Tactical Retreats 2 | . 1 . . . . 1 Traps | -11 -10 -10 -10 -9 -8 -8 ------- Run | Yrd Mat Min Exi Min Mat Sto Traps Triggered . | . . . . . . . Indirectly . | . . . . . . . Trap Hack Attempts . | . . . . . . . Triggered . | . . . . . . . Disarmed . | . . . . . . . Reprogrammed . | . . . . . . . Reused . | . . . . . . . Traps Extracted . | . . . . . . . Installed . | . . . . . . . Triggered . | . . . . . . . Machines | -11 -10 -10 -10 -9 -8 -8 ---------- Run | Yrd Mat Min Exi Min Mat Sto Machines Disabled 1 | . . . . . . 1 Max in Single Turn 1 | . . . . . . 1 Garrison Access 1 | . . . . . . 1 Machines Repaired . | . . . . . . . Machines Dismantled . | . . . . . . . Machines Sabotaged . | . . . . . . . Overloaded Fab Kills . | . . . . . . . Hacking | -11 -10 -10 -10 -9 -8 -8 --------- Run | Yrd Mat Min Exi Min Mat Sto Machines Accessed 8 | . . . 4 . . 4 Terminals 2 | . . . . . . 2 Fabricators . | . . . . . . . Repair Stations 1 | . . . . . . 1 Recycling Units . | . . . . . . . Scanalyzers . | . . . . . . . Garrison Access 1 | . . . . . . 1 Total Hacks 56 | . . . 49 . . 7 Successful 53 | . . . 49 . . 4 Failed 3 | . . . . . . 3 Catastrophic . | . . . . . . . Database Lockouts . | . . . . . . . Manual . | . . . . . . . Terminals 3 | . . . . . . 3 Fabricators . | . . . . . . . Repair Stations 2 | . . . . . . 2 Recycling Units . | . . . . . . . Scanalyzers . | . . . . . . . Garrison Access 2 | . . . . . . 2 Terminal Hacks 51 | . . . 49 . . 2 Record 49 | . . . 49 . . . Open Door 1 | . . . . . . 1 Recall Reinforcements 1 | . . . . . . 1 Fabricator Hacks . | . . . . . . . Repair Station Hacks 1 | . . . . . . 1 Scan Component 1 | . . . . . . 1 Recycling Unit Hacks . | . . . . . . . Scanalyzer . | . . . . . . . Garrison Access Hacks 1 | . . . . . . 1 Seal Access 1 | . . . . . . 1 Unauthorized Hacks . | . . . . . . . Terminals . | . . . . . . . Fabricators . | . . . . . . . Repair Stations . | . . . . . . . Recycling Units . | . . . . . . . Scanalyzers . | . . . . . . . Garrison Access . | . . . . . . . Data Cores Recovered . | . . . . . . . Used . | . . . . . . . Hacking Detections 3 | . . . . . . 3 Full Trace Events . | . . . . . . . Feedback Events . | . . . . . . . Feedback Blocked . | . . . . . . . Robot Schematics Acquired . | . . . . . . . Robots Built . | . . . . . . . Authchips . | . . . . . . . Time . | . . . . . . . Total Robot Build Rating . | . . . . . . . Part Schematics Acquired . | . . . . . . . Parts Built . | . . . . . . . Authchips . | . . . . . . . Time . | . . . . . . . Total Part Build Rating . | . . . . . . . Part Studies Acquired . | . . . . . . . Parts Repaired . | . . . . . . . Time . | . . . . . . . Parts Recycled . | . . . . . . . Recycled Matter . | . . . . . . . Retrieved Matter . | . . . . . . . Retrieved Components . | . . . . . . . Parts Scanalyzed . | . . . . . . . Part Schematics Acquired . | . . . . . . . Parts Damaged . | . . . . . . . Bothacking | -11 -10 -10 -10 -9 -8 -8 ------------ Run | Yrd Mat Min Exi Min Mat Sto Used RIF Installer . | . . . . . . . Robots Hacked . | . . . . . . . Non-combat . | . . . . . . . Combat . | . . . . . . . Robot Hacks Applied . | . . . . . . . Relay Couplers Released . | . . . . . . . Fabnet Peak Effective % . | . . . . . . . Robots Rewired . | . . . . . . . Allies Hacked . | . . . . . . . Hacks Repelled . | . . . . . . . Allies | -11 -10 -10 -10 -9 -8 -8 -------- Run | Yrd Mat Min Exi Min Mat Sto Total Allies 5 | . . 1 . 4 . . Largest Group 4 | . . 1 1 4 4 4 Highest-Rated Group 94 | . . 31 31 94 94 94 Highest-Rated Ally 31 | . . 31 31 31 31 31 Total Orders 1 | . . . . . . 1 EXPLORE 1 | . . . . . . 1 Ally Attacks 48 | . . 11 . 5 . 32 Total Damage 651 | . . 191 . 78 . 382 Kills 8 | . . 4 . 2 . 2 Allies Corrupted . | . . . . . . . Allies Melted . | . . . . . . . Intel | -11 -10 -10 -10 -9 -8 -8 ------- Run | Yrd Mat Min Exi Min Mat Sto Active Infowar (turns) 3176 | 49 498 268 1164 227 130 840 Terrain 278 | 47 231 . . . . . Seismic 3176 | 49 498 268 1164 227 130 840 Robot Analysis Total . | . . . . . . . Derelict Logs Recovered . | . . . . . . . Drone Launches 14 | . . . . . . 14 Drone Recoveries 2 | . . . . . . 2 Exploration | -11 -10 -10 -10 -9 -8 -8 ------------- Run | Yrd Mat Min Exi Min Mat Sto Turns Passed 3295 | 166 498 268 1164 227 130 842 Spaces Moved 1276 | 84 223 106 486 92 49 236 Core 8 | 8 . . . . . . Treads 1067 | 76 223 106 486 92 49 35 Legs 201 | . . . . . . 201 Wheels . | . . . . . . . Hover . | . . . . . . . Flight . | . . . . . . . Fastest Speed 50 | 50 160 240 240 240 240 190 Average Speed 220 | 149 196 240 240 240 240 207 Slowest Speed 470 | 160 240 240 240 240 240 470 Overloaded Moves . | . . . . . . . Propulsion Burnouts . | . . . . . . . Robots Hopped . | . . . . . . . Potential Cave-ins . | . . . . . . . Cave-ins Triggered . | . . . . . . . Exploration Rate (%) 33 | 4 47 15 71 32 6 62 Regions Visited 6 Branch Regions 4 Pre-discovered Areas 1 | . . . 1 . . . Known Exits Taken . | . . . . . . . Unknown Exits Taken 6 | 1 1 1 1 1 1 . Scrap Searched . | . . . . . . . Spaces Dug . | . . . . . . . Terrain Destroyed . | . . . . . . . Melee . | . . . . . . . Projectile . | . . . . . . . AOE . | . . . . . . . Terrain Rammed . | . . . . . . . Walls Destroyed . | . . . . . . . Machines Disabled . | . . . . . . . Actions | -11 -10 -10 -10 -9 -8 -8 --------- Run | Yrd Mat Min Exi Min Mat Sto Total 1606 | 104 258 112 485 99 62 486 Wait 180 | . 5 . . 8 11 156 Move 1270 | 83 222 105 485 91 48 236 Hop . | . . . . . . . Pick Up 25 | 5 7 2 . . 2 9 Fast Attach 16 | 5 1 . . . . 10 Attach 13 | 1 1 . . . 1 10 Detach . | . . . . . . . Swap 8 | . 2 1 . . . 5 Drop 7 | . 3 . . . . 4 Fire 80 | 10 17 4 . . . 49 Melee . | . . . . . . . Ram . | . . . . . . . Kick 1 | . . . . . . 1 Crush . | . . . . . . . Escape Stasis . | . . . . . . . Rewire . | . . . . . . . Trap . | . . . . . . . Miscellaneous 6 | . . . . . . 6 Route ------- -11/Scrapyard -10/Materials -10/Mines (discovered 2 exits: *Exi / [*Sub]) -10/Exiles (discovered 2 exits: [*Min x2]) -9/Mines -8/Materials -8/Storage History --------- Turn | Location | Event 8 | -11/Scrapyard | Discovered new exit (range 15) 167 | -11/Scrapyard | Entered Materials 301 | -10/Materials | Build established: Mutant 634 | -10/Materials | Discovered new exit (range 7) 665 | -10/Materials | Entered Mines 734 | -10/Mines | Met a Derelict testing a Signal Generator 861 | -10/Mines | Discovered new exit (range 5) 921 | -10/Mines | Deemed a non-threat by the Exiles lab entrance 923 | -10/Mines | Discovered new exit (range 5) 933 | -10/Mines | Entered Exiles 933 | -10/Exiles | Accompanied by 1 ally 974 | -10/Exiles | Discovered new exit (range 15) 1015 | -10/Exiles | Met 8R-AWN 1058 | -10/Exiles | Met EX-HEX 1149 | -10/Exiles | Met EX-DEC 1262 | -10/Exiles | Met EX-BIN 1457 | -10/Exiles | Discovered new exit (range 12) 1956 | -10/Exiles | Learned location of Zion (-7) 2097 | -10/Exiles | Entered Mines 2097 | -9/Mines | Accompanied by 1 ally 2109 | -9/Mines | Assisted by bots powering up and referring to "LRC-V3" 2265 | -9/Mines | Discovered new exit (range 11) 2273 | -9/Mines | Received a Mining Laser from a helpful Derelict 2324 | -9/Mines | Entered Materials 2324 | -8/Materials | Accompanied by 4 allies 2324 | -8/Materials | Evolved 4 slots: Propulsion x2, Utility x1, Weapon x1 2364 | -8/Materials | Discovered new exit (range 6) 2454 | -8/Materials | Entered Storage 2454 | -8/Storage | Accompanied by 4 allies 2851 | -8/Storage | Build established: Scavenger-Gunner 2925 | -8/Storage | Lost 3 parts (1p1n1w) 3242 | -8/Storage | Lost 8 allies 3268 | -8/Storage | Core integrity fell below 50% 3292 | -8/Storage | Core integrity fell below 20% 3296 | -8/Storage | Destroyed by Y-45 Defender with Beam Rifle Last Messages --------------- 03275_ C-30 ARC bursts open, deploying its payload. 03275_ H-55 Commando unfolds itself. 03275_ K-01 Serf collects debris. 03276_ G-47 Trooper destroyed. 03278_ K-01 Serf collects debris. 03279_ Aluminum Leg destroyed. 03281_ Acquired Imp. Ion Engine. 03281_ K-01 Serf collects debris. 03281_ Critical hit (Burn: +37). 03285_ K-01 Serf collects debris. 03285_ Hvy. Particle Gun destroyed. 03288_ K-01 Serf collects debris. 03288_ Critical hit (Destroy). 03288_ Lgt. Treads destroyed. 03291_ K-01 Serf collects debris. 03291_ Penetrated by Slug. 03291_ Carbon-fiber Leg destroyed. 03294_ Penetrated by Slug. 03294_ Seismic Detector destroyed. 03295_ K-01 Serf collects debris. Map ----- +----------------------------------------------------+ | ???????????????????????????????# #?????????? | | ???????????????????????????????# #?????????? | | ???????????????????????????????# #?????????? | | ???????????????????????????????# ##????????? | | ???????????????????????????????# #????????? | | ???????????????????????????????# #????????? | | ??????????????????????????##???# +????????? | | ??????????????????????????# ???# #???????? | | ???????##########?######### ??# #??????? | | ???????# ] #?#*** **## ?# ####### | | ???????# #?#*** **## # # | | ???????#! #?#! **## # # | | ???????# #?#! ## /% | | ######## #?##" "####!![ # ########+#### | | # ] #?# T#?#![??# #?# #???? | | """ # #?# ##?#????# #?# """ """ #???? | | """"?" #+###+#########/######??# #?# """ """ #???? | | "????" # % = #### ### """ """ #???? | | "????" + % %%= % +% #???? | | "?"""" # % % ! ####+### #???? | | """ ### ###########+########[ # #???? | | #?# #????# !% ##! #! #???? | | #?# #????# """ """== ## !######### #???? | | ####+###?# #????# """ """kYggh#! ! #????????##???? | | ##T# ##### #????# """ """Y[% ## / #?????????????? | | !# + #????# %!%@!! ## #?????????????? | | ## ####?#######+###"="#### #?????????????? | | # ## #????# ##"G"#??# #?????????????? | | ##### %%#????# """" ## " #??# #?????????????? | | ##### *%#????# ""??" ######??######?????????????? | | =%!######%""???" #??????????????????????????? | | +## %==[[]%]"["???"" #??????????????????????????? | | # ########!"??"" #??????????????????????????? | | + #??????#["""" #?????#####????????????????? | | # #??????# #?????#"""#????????????????? | | # #??????# #?????#"R"#????????????????? | | # #??????#####+##########" "##############???? | | + #?????##### + !] # ## ##### | | # #?????# + # # ## # | | # #????#T # #] # """## """"" # " | | ?# #????##"??# # ] # """## "???" # " | | ?# #?????????# + # """## "??"" # " | | ??# #?????????# # # """## ""??" # " | | ??# #?????????# # # """## "???" # | | ??# #?????????# # # % ## """"" # | | ?## ##????????# ####### | ## # | | ?# ########## ###########+######+##+######## | | ?# ! ! % %% =% | | ?# T |%! ! ! * [ | | ?# ! % % | +----------------------------------------------------+ Best States ------------- Heat Dissipation 45 Energy Generation 14 Energy Capacity 265 Matter Stores 300 Matter Capacity 300 Sight Range 16 Terrain Scan Range 16 Terrain Scan Density 10 Armor Coverage 150 Evasion (%) 50 Targeting Accuracy 5 Recoil Reduction 2 Item Schematics ----------------- None Robot Schematics ------------------ None Fabricated ------------ Nothing Repaired ---------- Nothing Studied --------- None Alien Tech Used ----------------- None Achievements -------------- None Challenges ------------ None Game ------ Seed GravjetMetafieldAmplifier Manual? 0 Play Time 00:17:51 Cumulative 199.1 hours Start 2026.09.21 @ 20:23:45 End 2026.09.21 @ 20:40:07 Sessions 1 Manual Loads 0 Difficulty Rogue Special Mode None Game No. 17 Rogue 1 Adventurer 2 Explorer 14 Win Type - Total 7 Types 4/0/1/0/0/0/0/0/0/2 Lore% 44 Gallery% 47 Achievement% 49 Wizard Run 0 Options --------- Layout 0 ASCII 0 Keyboard 0 Movement Mouse Keybinds 0 Fullscreen 1 Font 18/Cog Map View 76x50 Zoom Use 0% Tactical HUD 1 Map Filters NONE Filters NONE Steam 1 RUN: 56c84351-9a9f-4642-9cdf-6a6ba41ebf78